[Event "58th Akiba Rubinstein D 2022"]
[Site "Polanica-Zdroj"]
[Date "2022.08.20"]
[Round "8.13"]
[White "Gbiorczyk, Mikolaj"]
[Black "Misiek, Stanislaw"]
[Result "1-0"]
[ECO "D11"]
[WhiteElo "1781"]
[BlackElo "1427"]
[Annotator "NA RC"]
[PlyCount "41"]
[EventDate "2022.08.13"]
[EventCountry "POL"]
[SourceTitle "playchess.com"]
[Source "ChessBase"]
[SourceQuality "1"]
[TimeControl "40/5400+30:1800+30"]

1. d4 {[%emt 0:00:02]} d5 {[%emt 0:00:08]} 2. c4 {[%emt 0:00:05]} c6 {[%emt 0:00:07]} 3. Nf3 {[%emt 0:00:27]} Nf6 {[%emt 0:00:08]} 4. e3 {[%emt 0:00:04]} e6 {[%emt 0:00:38]} 5. Bd3 {[%emt 0:00:39]} Nbd7 {[%emt 0:02:43]} 6. b3 {[%emt 0:00:27]} Bd6 {[%emt 0:03:01]} 7. Bb2 {[%emt 0:00:18]} b6 {[%emt 0:02:16]} 8. O-O {[%emt 0:01:26]} Bb7 {[%emt 0:01:24]} 9. Nbd2 {[%emt 0:00:54]} O-O {[%emt 0:01:12]} 10. Ne5 {[%emt 0:04:23]} c5 {[%emt 0:10:48]} 11. Ndf3 {[%emt 0:04:42]} Rc8 {[%emt 0:05:59]} 12. Qe2 {[%emt 0:05:08]} Qc7 {[%emt 0:03:11]} 13. Rac1 {[%emt 0:03:42]} Rfd8 {[%emt 0:04:43]} 14. Rfd1 {[%emt 0:08:52]} Qb8 {[%emt 0:04:28]} 15. h3 {[%emt 0:07:33]} Bf8 {[%emt 0:04:07]} 16. Ng5 {[%emt 0:04:02]} Nxe5 {[%emt 0:02:54]} 17. dxe5 {[%emt 0:00:50]} Ne4 {[%emt 0:01:53]} 18. Bxe4 {[%emt 0:00:08]} dxe4 {[%emt 0:00:09]} 19. Qh5 {[%emt 0:00:30]} h6 {[%emt 0:02:38]} 20. Qxf7+ {[%emt 0:00:08]} Kh8 {[%emt 0:00:09]} 21. Nxe6 {[%emt 0:00:39]} 1-0

[Event "58th Akiba Rubinstein D 2022"]
[Site "Polanica-Zdroj"]
[Date "2022.08.20"]
[Round "8.14"]
[White "Sola, Wojciech"]
[Black "Serewa, Antoni"]
[Result "1/2-1/2"]
[ECO "D15"]
[WhiteElo "1780"]
[BlackElo "1542"]
[Annotator "NA RC"]
[PlyCount "48"]
[EventDate "2022.08.13"]
[EventCountry "POL"]
[SourceTitle "playchess.com"]
[Source "ChessBase"]
[SourceQuality "1"]
[TimeControl "40/5400+30:1800+30"]

1. c4 {[%emt 0:00:07]} c6 {[%emt 0:00:23]} 2. Nc3 {[%emt 0:00:08]} d5 {[%emt 0:00:38]} 3. d4 {[%emt 0:00:26]} Nf6 {[%emt 0:00:14]} 4. Nf3 {[%emt 0:00:43]} a6 {[%emt 0:00:07]} 5. Bf4 {[%emt 0:07:10]} b5 {[%emt 0:01:52]} 6. cxd5 {[%emt 0:00:14]} cxd5 {[%emt 0:00:11]} 7. e3 {[%emt 0:00:37]} e6 {[%emt 0:03:55]} 8. Bd3 {[%emt 0:01:34]} Bb7 {[%emt 0:00:24]} 9. h3 {[%emt 0:00:36]} Nbd7 {[%emt 0:00:23]} 10. Rc1 {[%emt 0:00:38]} Rc8 {[%emt 0:05:10]} 11. O-O {[%emt 0:00:16]} Be7 {[%emt 0:00:20]} 12. Qe2 {[%emt 0:01:26]} O-O {[%emt 0:01:35]} 13. Bb1 {[%emt 0:11:28]} b4 {[%emt 0:11:06]} 14. Na4 {[%emt 0:00:25]} Qa5 {[%emt 0:00:19]} 15. b3 {[%emt 0:00:54]} Bc6 {[%emt 0:01:00]} 16. Bd3 {[%emt 0:07:17]} Bb5 {[%emt 0:14:11]} 17. Ne5 {[%emt 0:06:20]} Nxe5 {[%emt 0:04:41]} 18. Bxe5 {[%emt 0:00:39]} Ne4 {[%emt 0:03:59]} 19. f3 {[%emt 0:12:47]} Nc3 {[%emt 0:05:49]} 20. Nxc3 {[%emt 0:00:55]} bxc3 {[%emt 0:01:03]} 21. Rc2 {[%emt 0:00:50]} Ba3 {[%emt 0:09:10]} 22. Bg3 {[%emt 0:03:22]} Rc6 {[%emt 0:04:23]} 23. Rd1 {[%emt 0:02:28]} Rfc8 {[%emt 0:00:54]} 24. Be1 {[%emt 0:00:31]} h6 {[%emt 0:12:46]} 1/2-1/2

[Event "58th Akiba Rubinstein D 2022"]
[Site "Polanica-Zdroj"]
[Date "2022.08.20"]
[Round "8.15"]
[White "Huchwajda, Katarzyna"]
[Black "Krygiel, Konrad"]
[Result "*"]
[ECO "A15"]
[WhiteElo "1768"]
[BlackElo "1603"]
[Annotator "NA RC"]
[PlyCount "52"]
[EventDate "2022.08.13"]
[EventCountry "POL"]
[SourceTitle "playchess.com"]
[Source "ChessBase"]
[SourceQuality "1"]
[TimeControl "40/5400+30:1800+30"]

1. c4 {[%emt 0:00:03]} Nf6 {[%emt 0:05:34]} 2. g3 {[%emt 0:00:27]} e6 {[%emt 0:00:28]} 3. Bg2 {[%emt 0:00:11]} d5 {[%emt 0:01:05]} 4. Nf3 {[%emt 0:00:12]} c5 {[%emt 0:00:58]} 5. O-O {[%emt 0:01:00]} Nc6 {[%emt 0:00:34]} 6. cxd5 {[%emt 0:01:15]} exd5 {[%emt 0:00:08]} 7. d4 {[%emt 0:02:02]} cxd4 {[%emt 0:08:30]} 8. Nxd4 {[%emt 0:01:09]} Be7 {[%emt 0:00:18]} 9. Nc3 {[%emt 0:02:15]} O-O {[%emt 0:00:39]} 10. e3 {[%emt 0:03:36]} Bb4 {[%emt 0:12:46]} 11. Nde2 {[%emt 0:07:36]} Be6 {[%emt 0:03:11]} 12. a3 {[%emt 0:05:00]} Bxc3 {[%emt 0:03:45]} 13. Nxc3 {[%emt 0:00:30]} Qd7 {[%emt 0:00:51]} 14. b4 {[%emt 0:02:52]} Rfd8 {[%emt 0:05:19]} 15. Ne2 {[%emt 0:08:04]} Bh3 {[%emt 0:04:55]} 16. Bb2 {[%emt 0:04:37]} Bxg2 {[%emt 0:02:34]} 17. Kxg2 {[%emt 0:00:06]} Qf5 {[%emt 0:03:33]} 18. Nd4 {[%emt 0:03:36]} Qe4+ {[%emt 0:04:15]} 19. Kg1 {[%emt 0:07:00]} Rac8 {[%emt 0:03:42]} 20. Re1 {[%emt 0:06:09]} Ne5 {[%emt 0:11:00]} 21. f3 {[%emt 0:05:22]} Qd3 {[%emt 0:04:31]} 22. Qxd3 {[%emt 0:06:33]} Nxd3 {[%emt 0:00:07]} 23. Re2 {[%emt 0:00:34]} Nxb2 {[%emt 0:04:33]} 24. Rxb2 {[%emt 0:00:06]} Rc3 {[%emt 0:00:15]} 25. Re2 {[%emt 0:02:10]} a6 {[%emt 0:00:43]} 26. Kf2 {[%emt 0:02:08]} g6 {[%emt 0:00:46]} *

[Event "58th Akiba Rubinstein D 2022"]
[Site "Polanica-Zdroj"]
[Date "2022.08.20"]
[Round "8.16"]
[White "Perek, Oskar"]
[Black "Pieczulis, Blazej"]
[Result "*"]
[ECO "A05"]
[WhiteElo "1555"]
[BlackElo "1720"]
[Annotator "NA RC"]
[PlyCount "36"]
[EventDate "2022.08.13"]
[EventCountry "POL"]
[SourceTitle "playchess.com"]
[Source "ChessBase"]
[SourceQuality "1"]
[TimeControl "40/5400+30:1800+30"]

1. Nf3 {[%emt 0:00:04]} Nf6 {[%emt 0:01:04]} 2. g3 {[%emt 0:00:43]} g6 {[%emt 0:02:10]} 3. Bg2 {[%emt 0:01:21]} Bg7 {[%emt 0:00:05]} 4. O-O {[%emt 0:00:50]} O-O {[%emt 0:01:56]} 5. c4 {[%emt 0:00:56]} c6 {[%emt 0:01:47]} 6. d4 {[%emt 0:01:13]} d5 {[%emt 0:00:15]} 7. Nc3 {[%emt 0:00:49]} Nbd7 {[%emt 0:06:45]} 8. Bf4 {[%emt 0:05:44]} dxc4 {[%emt 0:09:15]} 9. e4 {[%emt 0:05:30]} b5 10. e5 {[%emt 0:02:01]} Nd5 {[%emt 0:10:26]} 11. Nd2 {[%emt 0:00:30]} N7b6 {[%emt 0:17:35]} 12. Nde4 Nxf4 {[%emt 0:01:41]} 13. gxf4 {[%emt 0:09:37]} a6 {[%emt 0:01:10]} 14. Nc5 {[%emt 0:01:41]} Nd5 {[%emt 0:00:10]} 15. Nxd5 {[%emt 0:00:12]} cxd5 {[%emt 0:00:06]} 16. b3 {[%emt 0:01:09]} Bf5 {[%emt 0:04:59]} 17. a4 {[%emt 0:04:22]} e6 {[%emt 0:01:38]} 18. axb5 {[%emt 0:08:23]} axb5 {[%emt 0:02:02]} *

[Event "58th Akiba Rubinstein D 2022"]
[Site "Polanica-Zdroj"]
[Date "2022.08.20"]
[Round "8.17"]
[White "Nowicki, Bartosz"]
[Black "Ursnik, Patryk"]
[Result "*"]
[ECO "B90"]
[WhiteElo "2291"]
[BlackElo "1671"]
[Annotator "TA"]
[PlyCount "55"]
[EventDate "2022.08.13"]
[EventCountry "POL"]
[SourceTitle "playchess.com"]
[Source "ChessBase"]
[SourceQuality "1"]
[TimeControl "40/5400+30:1800+30"]

{[%evp 21,55,8,74,68,76,9,91,95,88,63,70,70,138,106,161,0,125,0,69,87,192,183,295,0,67,0,251,0,88,0,262,0,85,0,277,262]} 1. e4 {[%emt 0:00:02]} c5 {[%emt 0:10:50]} 2. Nf3 {[%emt 0:00:03]} d6 {[%emt 0:00:04]} 3. d4 {[%emt 0:00:05]} cxd4 {[%emt 0:00:05]} 4. Nxd4 {[%emt 0:00:07]} Nf6 {[%emt 0:00:07]} 5. Nc3 {[%emt 0:00:04]} a6 {[%emt 0:00:03]} 6. Be3 {[%emt 0:01:07]} e5 {[%emt 0:00:48]} 7. Nb3 {[%emt 0:00:27]} Be6 {[%emt 0:00:57]} 8. f3 {[%emt 0:00:50]} Be7 {[%emt 0:00:22]} 9. Qd2 O-O {[%emt 0:02:53]} 10. O-O-O {[%emt 0:01:06]} Nbd7 {[%emt 0:05:00]} 11. g4 {[%emt 0:01:45]} Nc5 {[%emt 0:00:55]} (11... b5 $11) 12. h4 $16 {[%emt 0:05:39][%cal Bh2h4,Bh4h5][%mdl 32] B90: Sicilian Najdorf: Unusual White 6th moves, 6 Be3 Ng4 and 6 Be3 e5.} b5 {[%emt 0:04:57]} 13. Nd5 {[%emt 0:05:51]} (13. g5 $16 Nh5 14. Nxc5 dxc5 15. Nd5) 13... Bxd5 {[%emt 0:01:08]} (13... Nxd5 $11 {keeps the balance.} 14. Bxc5 Nf4) 14. exd5 {[%emt 0:00:34] White is better.} Nxb3+ {[%emt 0:05:13]} 15. axb3 {[%emt 0:00:01] [#]} Qc7 $146 ({Predecessor:} 15... a5 16. Bxb5 Qc7 17. g5 Nd7 18. g6 f5 19. gxh7+ Kxh7 20. Bc6 Rac8 21. Rdg1 Rg8 22. f4 e4 23. Qg2 Nf6 24. Qg6+ Kh8 25. h5 {1-0 (25) Vozarova,A (1633)-Buran,A (1627) Slovakia 2016}) 16. h5 {[%emt 0:09:55]} Rfc8 {[%emt 0:09:24]} (16... Nd7 $14) 17. Rh2 {[%emt 0:00:00]} Rf8 {[%emt 0:00:00]} (17... Rcb8 $16) 18. Rh1 {[%emt 0:01:00]} Rfc8 $1 {[%emt 0:01:00][%cal Of6d5] [#]} 19. Rh2 {[%emt 0:04:04]} (19. Kb1 $1 $16) 19... Nd7 {[%emt 0:12:33]} (19... Rf8 $1 $11) 20. g5 $14 {[%emt 0:04:36] White is more active.} Nc5 {[%emt 0:00:19]} (20... Rcb8 $16) 21. Kb1 $18 {[%emt 0:00:00]} Nd7 {[%emt 0:00:41]} (21... a5 $142 22. Bxb5 Rab8) 22. Kc1 $2 {[%emt 0:01:00]} (22. g6 $18) 22... Nc5 $14 {[%emt 0:00:19] [#] Threatens to win with ...Nxb3+.} 23. Kb1 $2 {[%emt 0:00:00]} (23. Qe1 $14) 23... Nd7 $1 $18 {[%emt 0:00:41]} 24. Kc1 $2 {[%emt 0:01:00]} (24. g6 $18) 24... Nc5 $16 {[%emt 0:00:19] And now ...Nxb3+ would win.} 25. Kb1 $2 {[%emt 0:00:00]} (25. Qe1 $16) 25... Nd7 $1 $18 {[%emt 0:00:41]} 26. Kc1 $2 {[%emt 0:01:00]} (26. g6 $18 {is more deadly.}) 26... Nc5 $16 {[%emt 0:00:19] aiming for ...Nxb3+.} 27. Kb1 {[%emt 0:01:06]} ({White should try} 27. Qe1 $16) 27... Bf8 $2 {[%emt 0:09:04][%mdl 8192]} (27... Nd7 $1 $11) 28. g6 {[%emt 0:04:51] Weighted Error Value: White=0.96/Black=0.40} *

[Event "58th Akiba Rubinstein D 2022"]
[Site "Polanica-Zdroj"]
[Date "2022.08.20"]
[Round "8.18"]
[White "Bialik, Nikodem"]
[Black "Kopestynski, Michal"]
[Result "1/2-1/2"]
[ECO "B20"]
[WhiteElo "1638"]
[BlackElo "1554"]
[Annotator "NA RC"]
[PlyCount "77"]
[EventDate "2022.08.13"]
[EventCountry "POL"]
[SourceTitle "playchess.com"]
[Source "ChessBase"]
[SourceQuality "1"]
[TimeControl "40/5400+30:1800+30"]

1. e4 {[%emt 0:10:14]} c5 {[%emt 0:00:02]} 2. a3 {[%emt 0:00:14]} g6 {[%emt 0:00:52]} 3. b4 {[%emt 0:00:23]} Bg7 {[%emt 0:00:07]} 4. c3 {[%emt 0:00:24]} cxb4 {[%emt 0:00:39]} 5. axb4 {[%emt 0:00:06]} d5 {[%emt 0:00:21]} 6. exd5 {[%emt 0:01:34]} Qxd5 {[%emt 0:00:09]} 7. Nf3 Nf6 {[%emt 0:06:06]} 8. d4 {[%emt 0:02:48]} O-O {[%emt 0:00:10]} 9. Bd3 {[%emt 0:01:54]} Bg4 {[%emt 0:01:31]} 10. O-O {[%emt 0:01:09]} Bxf3 {[%emt 0:00:09]} 11. Qxf3 {[%emt 0:00:05]} Qxf3 {[%emt 0:00:08]} 12. gxf3 {[%emt 0:00:03]} Nbd7 {[%emt 0:01:28]} 13. Re1 {[%emt 0:01:00]} Nd5 {[%emt 0:02:59]} 14. Bd2 e6 {[%emt 0:04:59]} 15. Na3 {[%emt 0:02:51]} a6 {[%emt 0:01:30]} 16. Rab1 {[%emt 0:04:28]} Rac8 {[%emt 0:01:17]} 17. c4 {[%emt 0:06:04]} N5b6 {[%emt 0:00:54]} 18. Be3 {[%emt 0:00:51]} Rfd8 {[%emt 0:01:00]} 19. b5 {[%emt 0:05:17]} axb5 {[%emt 0:00:49]} 20. Rxb5 {[%emt 0:00:11]} Ra8 {[%emt 0:01:10]} 21. Nc2 {[%emt 0:01:00]} Rac8 {[%emt 0:07:16]} 22. Na3 {[%emt 0:00:00]} Ra8 {[%emt 0:00:00]} 23. Nc2 {[%emt 0:01:00]} Rac8 24. c5 {[%emt 0:09:05]} Nd5 {[%emt 0:01:02]} 25. Be4 {[%emt 0:01:45]} N5b6 {[%emt 0:00:00]} 26. Bd3 {[%emt 0:00:00]} Nd5 {[%emt 0:01:00]} 27. Be4 {[%emt 0:01:00]} b6 {[%emt 0:02:20]} 28. Bxd5 {[%emt 0:01:07]} exd5 {[%emt 0:00:03]} 29. Nb4 {[%emt 0:00:43]} bxc5 {[%emt 0:01:26]} 30. Nxd5 {[%emt 0:00:13]} Bf8 {[%emt 0:00:10]} 31. Nb4 Bg7 32. Nd5 {[%emt 0:01:00]} Bf8 {[%emt 0:01:00]} 33. Bg5 {[%emt 0:03:59]} Bg7 34. Be3 {[%emt 0:00:00]} Bf8 {[%emt 0:01:00]} 35. Bg5 {[%emt 0:01:00]} f6 {[%emt 0:01:04]} 36. Nxf6+ {[%emt 0:00:07]} Nxf6 {[%emt 0:00:08]} 37. Bxf6 {[%emt 0:00:04]} Rd6 {[%emt 0:00:25]} 38. Be5 {[%emt 0:01:34]} Rd7 {[%emt 0:00:40]} 39. dxc5 1/2-1/2

[Event "58th Akiba Rubinstein D 2022"]
[Site "Polanica-Zdroj"]
[Date "2022.08.20"]
[Round "8.19"]
[White "Urbanski, Wojciech"]
[Black "Perucki, Maciej"]
[Result "1/2-1/2"]
[ECO "B33"]
[WhiteElo "1632"]
[BlackElo "1449"]
[Annotator "NA RC"]
[PlyCount "38"]
[EventDate "2022.08.13"]
[EventCountry "POL"]
[SourceTitle "playchess.com"]
[Source "ChessBase"]
[SourceQuality "1"]
[TimeControl "40/5400+30:1800+30"]

1. e4 {[%emt 0:00:30]} c5 {[%emt 0:00:07]} 2. Nf3 {[%emt 0:00:00]} Nc6 {[%emt 0:00:03]} 3. d4 {[%emt 0:00:00]} cxd4 {[%emt 0:00:03]} 4. Nxd4 {[%emt 0:00:00]} Nf6 {[%emt 0:00:04]} 5. Nc3 {[%emt 0:00:13]} e5 {[%emt 0:00:05]} 6. Ndb5 {[%emt 0:00:27]} d6 {[%emt 0:00:06]} 7. Bg5 {[%emt 0:02:22]} a6 {[%emt 0:00:20]} 8. Na3 {[%emt 0:00:46]} b5 {[%emt 0:00:05]} 9. Nd5 {[%emt 0:00:55]} Qa5+ {[%emt 0:00:22]} 10. Bd2 {[%emt 0:04:17]} Qd8 {[%emt 0:00:08]} 11. Bg5 {[%emt 0:00:05]} Qa5+ 12. Bd2 {[%emt 0:09:56]} Qd8 {[%emt 0:00:44]} 13. Bg5 {[%emt 0:02:05]} Qa5+ {[%emt 0:03:56]} 14. Nc3 Qd8 15. Nd5 Qa5+ 16. Bd2 Qd8 17. Bg5 Qa5+ 18. Bd2 Qd8 19. Bg5 Qa5+ 1/2-1/2

[Event "58th Akiba Rubinstein D 2022"]
[Site "Polanica-Zdroj"]
[Date "2022.08.20"]
[Round "8.20"]
[White "Butkiewicz, Jan"]
[Black "Suszczynski, Dominik"]
[Result "*"]
[ECO "A86"]
[WhiteElo "1613"]
[BlackElo "1329"]
[Annotator "NA RC"]
[PlyCount "50"]
[EventDate "2022.08.13"]
[EventCountry "POL"]
[SourceTitle "playchess.com"]
[Source "ChessBase"]
[SourceQuality "1"]
[TimeControl "40/5400+30:1800+30"]

1. d4 {[%emt 0:00:01]} f5 {[%emt 0:05:01]} 2. c4 {[%emt 0:00:17]} Nf6 {[%emt 0:00:08]} 3. g3 {[%emt 0:00:07]} g6 {[%emt 0:02:16]} 4. Bg2 {[%emt 0:00:08]} Bg7 {[%emt 0:00:08]} 5. Nc3 {[%emt 0:00:06]} O-O {[%emt 0:00:35]} 6. Qc2 {[%emt 0:03:07]} d6 {[%emt 0:06:27]} 7. Nf3 {[%emt 0:22:30]} Qe8 {[%emt 0:10:07]} 8. O-O {[%emt 0:00:43]} c6 {[%emt 0:03:54]} 9. b3 {[%emt 0:08:17]} e5 {[%emt 0:02:00]} 10. dxe5 {[%emt 0:01:13]} dxe5 {[%emt 0:00:01]} 11. Ba3 {[%emt 0:00:58]} Rf7 {[%emt 0:04:52]} 12. Bd6 {[%emt 0:03:59]} e4 {[%emt 0:06:40]} 13. Ne5 {[%emt 0:00:58]} Re7 {[%emt 0:00:01]} 14. Bxe7 {[%emt 0:00:46]} Qxe7 {[%emt 0:00:00]} 15. Nf3 {[%emt 0:00:00]} Qe8 {[%emt 0:01:00]} 16. Ne5 {[%emt 0:01:00]} Qe7 {[%emt 0:00:00]} 17. Nf3 {[%emt 0:00:00]} Qe8 {[%emt 0:01:00]} 18. Ne5 {[%emt 0:01:00]} Qe7 {[%emt 0:00:00]} 19. Rad1 {[%emt 0:06:59]} Qe8 {[%emt 0:01:00]} 20. Ra1 {[%emt 0:00:00]} Qe7 {[%emt 0:00:00]} 21. Rad1 {[%emt 0:01:00]} Qe8 {[%emt 0:01:00]} 22. Ra1 {[%emt 0:00:00]} Qe7 {[%emt 0:00:00]} 23. Rad1 {[%emt 0:01:00]} Na6 {[%emt 0:05:47]} 24. Ra1 {[%emt 0:00:00]} Nb8 {[%emt 0:00:00]} 25. Rad1 {[%emt 0:01:00]} Na6 *

[Event "58th Akiba Rubinstein D 2022"]
[Site "Polanica-Zdroj"]
[Date "2022.08.20"]
[Round "8.21"]
[White "Sleczka, Krzysztof"]
[Black "Milczarek, Robert"]
[Result "1/2-1/2"]
[ECO "B35"]
[WhiteElo "1443"]
[BlackElo "1653"]
[Annotator "NA RC"]
[PlyCount "32"]
[EventDate "2022.08.13"]
[EventCountry "POL"]
[SourceTitle "playchess.com"]
[Source "ChessBase"]
[SourceQuality "1"]
[TimeControl "40/5400+30:1800+30"]

1. e4 {[%emt 0:00:03]} c5 {[%emt 0:00:06]} 2. Nf3 {[%emt 0:00:03]} g6 {[%emt 0:00:10]} 3. d4 {[%emt 0:00:05]} cxd4 {[%emt 0:00:05]} 4. Nxd4 {[%emt 0:00:02]} Nc6 {[%emt 0:00:07]} 5. Nc3 {[%emt 0:00:40]} Bg7 {[%emt 0:00:14]} 6. Be3 {[%emt 0:00:01]} Nf6 {[%emt 0:00:08]} 7. Bc4 {[%emt 0:00:03]} O-O {[%emt 0:00:23]} 8. Bb3 {[%emt 0:00:04]} d6 {[%emt 0:00:24]} 9. f3 {[%emt 0:01:00]} Bd7 {[%emt 0:00:25]} 10. Qd2 {[%emt 0:00:10]} Nxd4 {[%emt 0:00:23]} 11. Bxd4 {[%emt 0:01:10]} b5 {[%emt 0:00:52]} 12. O-O {[%emt 0:08:37]} a5 {[%emt 0:02:11]} 13. a4 {[%emt 0:00:03]} b4 {[%emt 0:03:50]} 14. Nd5 {[%emt 0:02:53]} Nxd5 {[%emt 0:01:25]} 15. Bxd5 {[%emt 0:06:50]} Bxd4+ {[%emt 0:00:55]} 16. Qxd4 {[%emt 0:00:02]} Rc8 1/2-1/2

[Event "58th Akiba Rubinstein D 2022"]
[Site "Polanica-Zdroj"]
[Date "2022.08.20"]
[Round "8.23"]
[White "Rychlik, Michal"]
[Black "Szczepanski, Krzysztof"]
[Result "*"]
[ECO "D30"]
[WhiteElo "1354"]
[BlackElo "1790"]
[Annotator "NA RC"]
[PlyCount "62"]
[EventDate "2022.08.13"]
[EventCountry "POL"]
[SourceTitle "playchess.com"]
[Source "ChessBase"]
[SourceQuality "1"]
[TimeControl "40/5400+30:1800+30"]

1. d4 {[%emt 0:00:09]} d5 {[%emt 0:00:07]} 2. c4 {[%emt 0:00:30]} e6 {[%emt 0:00:04]} 3. Nf3 {[%emt 0:00:12]} c6 {[%emt 0:00:12]} 4. Qc2 {[%emt 0:06:07]} Nf6 {[%emt 0:05:52]} 5. Nbd2 {[%emt 0:04:29]} Bb4 {[%emt 0:02:30]} 6. e3 {[%emt 0:10:26]} Ne4 7. a3 {[%emt 0:00:48]} Bxd2+ {[%emt 0:04:09]} 8. Nxd2 {[%emt 0:02:43]} f5 {[%emt 0:00:28]} 9. Bd3 O-O {[%emt 0:00:44]} 10. O-O {[%emt 0:01:08]} Nd7 {[%emt 0:04:16]} 11. b4 {[%emt 0:05:29]} Rf6 {[%emt 0:00:01]} 12. f3 {[%emt 0:04:53]} Nxd2 {[%emt 0:07:08]} 13. Bxd2 {[%emt 0:00:00]} Rf7 {[%emt 0:09:57]} 14. Bc1 {[%emt 0:01:00]} Rf6 {[%emt 0:00:00]} 15. Bd2 {[%emt 0:00:00]} Rf7 {[%emt 0:01:00]} 16. Bc1 {[%emt 0:01:00]} Rf6 {[%emt 0:00:00]} 17. Bd2 Rf7 {[%emt 0:01:00]} 18. b5 {[%emt 0:06:03]} cxb5 {[%emt 0:00:22]} 19. cxd5 {[%emt 0:01:26]} Nb6 {[%emt 0:00:23]} 20. dxe6 {[%emt 0:04:13]} Bxe6 {[%emt 0:00:14]} 21. Bxb5 {[%emt 0:00:38]} Rc7 {[%emt 0:00:54]} 22. Bd3 {[%emt 0:00:22]} Rf7 23. Bb5 {[%emt 0:00:38]} Rc7 {[%emt 0:01:00]} 24. Qb2 {[%emt 0:03:08]} Rac8 {[%emt 0:03:05]} 25. Qc2 {[%emt 0:00:00]} Ra8 {[%emt 0:00:00]} 26. Qb2 {[%emt 0:01:00]} Rac8 {[%emt 0:01:00]} 27. Rfc1 {[%emt 0:01:58]} Ra8 {[%emt 0:00:00]} 28. Rf1 {[%emt 0:00:00]} Rac8 {[%emt 0:01:00]} 29. Rfc1 {[%emt 0:01:00]} Ra8 {[%emt 0:00:00]} 30. Rf1 {[%emt 0:00:00]} Rac8 {[%emt 0:01:00]} 31. Rfc1 {[%emt 0:01:00]} Qd5 {[%emt 0:07:01]} *

[Event "58th Akiba Rubinstein D 2022"]
[Site "Polanica-Zdroj"]
[Date "2022.08.20"]
[Round "8.24"]
[White "Para, Tomasz"]
[Black "Karpiuk, Julian"]
[Result "*"]
[ECO "D00"]
[WhiteElo "1796"]
[BlackElo "1513"]
[Annotator "NA RC"]
[PlyCount "59"]
[EventDate "2022.08.13"]
[EventCountry "POL"]
[SourceTitle "playchess.com"]
[Source "ChessBase"]
[SourceQuality "1"]
[TimeControl "40/5400+30:1800+30"]

1. d4 {[%emt 0:00:03]} d5 {[%emt 0:00:04]} 2. Bf4 {[%emt 0:00:03]} Nf6 {[%emt 0:00:08]} 3. e3 {[%emt 0:00:02]} c5 {[%emt 0:00:11]} 4. c3 {[%emt 0:01:46]} Nc6 {[%emt 0:00:23]} 5. Nd2 {[%emt 0:01:50]} Bf5 {[%emt 0:00:51]} 6. Ngf3 {[%emt 0:01:48]} Qb6 {[%emt 0:01:44]} 7. Nh4 {[%emt 0:07:28]} Bd7 {[%emt 0:09:06]} 8. Qb3 {[%emt 0:03:53]} c4 {[%emt 0:02:36]} 9. Qc2 {[%emt 0:02:20]} h6 {[%emt 0:01:59]} 10. Nhf3 {[%emt 0:04:58]} g6 {[%emt 0:02:08]} 11. Ne5 {[%emt 0:02:00]} Bf5 {[%emt 0:13:39]} 12. Qc1 {[%emt 0:00:11]} g5 {[%emt 0:03:25]} 13. Bg3 {[%emt 0:00:49]} Nh5 {[%emt 0:09:58]} 14. Bf4 {[%emt 0:00:11]} Nf6 {[%emt 0:00:00]} 15. Bg3 {[%emt 0:00:49]} Nh5 {[%emt 0:00:00]} 16. Bf4 {[%emt 0:00:11]} Nf6 {[%emt 0:00:00]} 17. Bg3 {[%emt 0:00:49]} Nh5 {[%emt 0:00:00]} 18. Bf4 {[%emt 0:00:11]} Nf6 {[%emt 0:00:00]} 19. Bg3 {[%emt 0:00:49]} Nh5 {[%emt 0:03:00]} 20. Nxc6 {[%emt 0:10:52]} Nxg3 {[%emt 0:03:10]} 21. Ne5 {[%emt 0:00:00]} Nh5 22. Nc6 Ng3 {[%emt 0:01:00]} 23. hxg3 {[%emt 0:02:53]} Qxc6 {[%emt 0:00:09]} 24. Be2 {[%emt 0:02:24]} Qb6 {[%emt 0:00:51]} 25. Bf1 {[%emt 0:00:30]} Qc6 {[%emt 0:00:09]} 26. Be2 {[%emt 0:00:00]} Bg7 {[%emt 0:04:05]} 27. Bf1 {[%emt 0:01:00]} Bf8 {[%emt 0:00:00]} 28. Be2 Bg7 {[%emt 0:01:00]} 29. g4 {[%emt 0:05:02]} Bh7 {[%emt 0:01:43]} 30. Nf1 {[%emt 0:04:40]} *

[Event "58th Akiba Rubinstein D 2022"]
[Site "Polanica-Zdroj"]
[Date "2022.08.20"]
[Round "8.25"]
[White "Ugorek, Kacper"]
[Black "Latacz, Grzegorz"]
[Result "*"]
[ECO "B37"]
[WhiteElo "1747"]
[BlackElo "1449"]
[Annotator "NA RC"]
[PlyCount "54"]
[EventDate "2022.08.13"]
[EventCountry "POL"]
[SourceTitle "playchess.com"]
[Source "ChessBase"]
[SourceQuality "1"]
[TimeControl "40/5400+30:1800+30"]

1. e4 {[%emt 0:00:02]} c5 {[%emt 0:00:15]} 2. Nf3 {[%emt 0:00:13]} Nc6 {[%emt 0:00:05]} 3. d4 {[%emt 0:00:08]} cxd4 {[%emt 0:00:04]} 4. Nxd4 {[%emt 0:00:05]} g6 {[%emt 0:00:06]} 5. c4 {[%emt 0:00:09]} Bg7 {[%emt 0:00:11]} 6. Nc2 {[%emt 0:00:10]} d6 {[%emt 0:00:20]} 7. Be2 {[%emt 0:00:18]} Bd7 {[%emt 0:01:04]} 8. Nc3 Bxc3+ {[%emt 0:03:26]} 9. bxc3 {[%emt 0:06:27]} h5 {[%emt 0:01:09]} 10. O-O {[%emt 0:01:29]} Nf6 {[%emt 0:04:04]} 11. f3 {[%emt 0:01:41]} Rc8 {[%emt 0:14:27]} 12. Ne3 {[%emt 0:11:09]} Ra8 {[%emt 0:00:00]} 13. Nc2 {[%emt 0:00:00]} Rc8 {[%emt 0:01:00]} 14. Ne3 {[%emt 0:01:00]} Ne5 {[%emt 0:00:00]} 15. Nc2 {[%emt 0:00:00]} Nc6 {[%emt 0:01:00]} 16. Ne3 {[%emt 0:01:00]} Ne5 17. Qb3 {[%emt 0:06:00]} Qc7 {[%emt 0:21:02]} 18. Bd2 {[%emt 0:03:45]} Qd8 {[%emt 0:00:00]} 19. Bc1 {[%emt 0:00:00]} Qc7 {[%emt 0:01:00]} 20. Bd2 {[%emt 0:00:00]} Qd8 {[%emt 0:00:00]} 21. Bc1 {[%emt 0:00:00]} Qc7 {[%emt 0:01:00]} 22. Bd2 {[%emt 0:00:00]} b6 {[%emt 0:11:19]} 23. Rab1 {[%emt 0:19:39]} Qc5 {[%emt 0:00:00]} 24. Ra1 {[%emt 0:00:00]} Qc7 {[%emt 0:01:00]} 25. Rab1 {[%emt 0:01:00]} Qc5 {[%emt 0:00:00]} 26. Ra1 {[%emt 0:00:00]} Qc7 {[%emt 0:01:00]} 27. Rab1 {[%emt 0:01:00]} Qc5 {[%emt 0:00:30]} *